fUST/lending_fUST_20260509
["ID","MTS","AMOUNT","RATE_DAILY","PERIOD"]
[421903403,1778315446000,-500.0,0.0001178,2]
[421903405,1778315446000,-500.0,0.0001178,2]
[421903404,1778315446000,-500.0,0.0001178,2]
[421903407,1778315446000,-500.0,0.0001178,2]
[421903406,1778315446000,-500.0,0.0001178,2]
[421903341,1778315446000,-604.84,0.0001178,2]
[421903392,1778315446000,-500.0,0.0001178,2]
[421903379,1778315446000,-500.0,0.0001178,2]
[421903408,1778315446000,-1222.76,0.0001178,2]
[421903377,1778315446000,-500.0,0.0001178,2]
[421903380,1778315446000,-500.0,0.0001178,2]
[421903344,1778315446000,-1221.2,0.0001178,2]
[421903349,1778315446000,-500.0,0.0001178,2]
[421903354,1778315446000,-667.76,0.0001178,2]
[421903357,1778315446000,-550.85,0.0001178,2]
[421903356,1778315446000,-500.0,0.0001178,2]
[421903359,1778315446000,-1165.59,0.0001178,2]
[421903360,1778315446000,-500.0,0.0001178,2]
[421903362,1778315446000,-500.0,0.0001178,2]
[421903363,1778315446000,-500.0,0.0001178,2]
[421903353,1778315446000,-500.0,0.0001178,2]
[421903355,1778315446000,-500.0,0.0001178,2]
[421903352,1778315446000,-500.0,0.0001178,2]
[421903358,1778315446000,-500.0,0.0001178,2]
[421903351,1778315446000,-606.09,0.0001178,2]
[421903364,1778315446000,-500.0,0.0001178,2]
[421903361,1778315446000,-500.0,0.0001178,2]
[421903371,1778315446000,-500.0,0.0001178,2]
[421903374,1778315446000,-501.92146028,0.0001178,2]
[421903370,1778315446000,-500.0,0.0001178,2]
[421903368,1778315446000,-500.0,0.0001178,2]
[421903372,1778315446000,-676.26,0.0001178,2]
[421903366,1778315446000,-500.0,0.0001178,2]
[421903375,1778315446000,-500.0,0.0001178,2]
[421903369,1778315446000,-500.0,0.0001178,2]
[421903376,1778315446000,-1819.96,0.0001178,2]
[421903373,1778315446000,-554.31,0.0001178,2]
[421903365,1778315446000,-548.03,0.0001178,2]
[421903367,1778315446000,-500.0,0.0001178,2]
[421903447,1778315447000,-500.0,0.0001178,2]
[421903436,1778315447000,-501.76791667,0.0001178,2]
[421903438,1778315447000,-1186.27,0.0001178,2]
[421903432,1778315447000,-528.25,0.0001178,2]
[421903442,1778315447000,-500.0,0.0001178,2]
[421903441,1778315447000,-500.0,0.0001178,2]
[421903443,1778315447000,-500.0,0.0001178,2]
[421903444,1778315447000,-500.0,0.0001178,2]
[421903445,1778315447000,-500.0,0.0001178,2]
[421903449,1778315447000,-511.49,0.0001178,2]
[421903440,1778315447000,-2925.65,0.0001178,2]
[421903452,1778315447000,-714.26,0.0001178,2]
[421903453,1778315447000,-709.72,0.0001178,2]
[421903451,1778315447000,-500.0,0.0001178,2]
[421903446,1778315447000,-645.42,0.0001178,2]
[421903450,1778315447000,-500.0,0.0001178,2]
[421903456,1778315447000,-151.0,0.000119,2]
[421903457,1778315447000,-151.0,0.000119,2]
[421903455,1778315447000,-151.0,0.000118,2]
[421903458,1778315447000,-164002.10158779,0.00012,2]
[421903454,1778315447000,-1479.23,0.0001178,2]
[421903460,1778315447000,-151.0,0.00012,2]
[421903435,1778315447000,-15569.89,0.0001178,2]
[421903464,1778315447000,-511.04,0.00012054,2]
[421903448,1778315447000,-500.0,0.0001178,2]
[421903439,1778315447000,-1554.02,0.0001178,2]
[421903420,1778315447000,-2149.26,0.0001178,2]
[421903434,1778315447000,-500.0,0.0001178,2]
[421903462,1778315447000,-155.0,0.00012053,2]
[421903410,1778315447000,-500.0,0.0001178,2]
[421903409,1778315447000,-628.55,0.0001178,2]
[421903413,1778315447000,-506.95,0.0001178,2]
[421903415,1778315447000,-501.99578168,0.0001178,2]
[421903411,1778315447000,-859.52,0.0001178,2]
[421903414,1778315447000,-500.0,0.0001178,2]
[421903412,1778315447000,-500.0,0.0001178,2]
[421903417,1778315447000,-500.0,0.0001178,2]
[421903427,1778315447000,-500.0,0.0001178,2]
[421903416,1778315447000,-500.0,0.0001178,2]
[421903431,1778315447000,-500.0,0.0001178,2]
[421903419,1778315447000,-802.52,0.0001178,2]
[421903421,1778315447000,-500.0,0.0001178,2]
[421903422,1778315447000,-1234.35,0.0001178,2]
[421903424,1778315447000,-3051.79,0.0001178,2]
[421903425,1778315447000,-500.0,0.0001178,2]
[421903423,1778315447000,-500.0,0.0001178,2]
[421903426,1778315447000,-678.04,0.0001178,2]
[421903429,1778315447000,-500.0,0.0001178,2]
[421903428,1778315447000,-1687.57,0.0001178,2]
[421903430,1778315447000,-507.77,0.0001178,2]
[421903433,1778315447000,-500.0,0.0001178,2]
[421903437,1778315447000,-566.2,0.0001178,2]
[421903418,1778315447000,-681.8,0.0001178,2]
[421903459,1778315447000,-301.803097,0.00012,2]
[421903465,1778315447000,-530.0,0.00012054,2]
[421903463,1778315447000,-500.0,0.00012054,2]
[421903493,1778315447000,-1194.49,0.00012054,2]
[421903494,1778315447000,-552.04570927,0.00012054,2]
[421903496,1778315447000,-500.0,0.00012054,2]
[421903495,1778315447000,-502.07412013,0.00012054,2]
[421903499,1778315447000,-500.0,0.00012054,2]
[421903498,1778315447000,-1051.41,0.00012054,2]
[421903497,1778315447000,-592.64,0.00012054,2]
[421903501,1778315447000,-578.99,0.00012054,2]
[421903500,1778315447000,-500.0,0.00012054,2]
[421903502,1778315447000,-500.0,0.00012054,2]
[421903504,1778315447000,-523.45,0.00012054,2]
[421903492,1778315447000,-500.0,0.00012054,2]
[421903511,1778315447000,-500.0,0.00012054,2]
[421903503,1778315447000,-500.0,0.00012054,2]
[421903510,1778315447000,-500.0,0.00012054,2]
[421903508,1778315447000,-500.0,0.00012054,2]
[421903507,1778315447000,-500.0,0.00012054,2]
[421903505,1778315447000,-587.21,0.00012054,2]
[421903506,1778315447000,-500.0,0.00012054,2]
[421903509,1778315447000,-545.6,0.00012054,2]
[421903515,1778315447000,-500.0,0.00012054,2]
[421903516,1778315447000,-604.84,0.00012054,2]
[421903517,1778315447000,-549.97,0.00012054,2]
[421903514,1778315447000,-500.0,0.00012054,2]
[421903512,1778315447000,-500.0,0.00012054,2]
[421903488,1778315447000,-500.0,0.00012054,2]
[421903513,1778315447000,-500.0,0.00012054,2]
[421903490,1778315447000,-500.0,0.00012054,2]
[421903491,1778315447000,-623.29,0.00012054,2]
[421903461,1778315447000,-151.0,0.00012,2]
[421903475,1778315447000,-500.17,0.00012054,2]
[421903467,1778315447000,-500.0,0.00012054,2]
[421903477,1778315447000,-1197.6811,0.00012054,2]
[421903476,1778315447000,-276.52,0.00012054,2]
[421903468,1778315447000,-500.0,0.00012054,2]
[421903471,1778315447000,-289.09245457,0.00012054,2]
[421903470,1778315447000,-377.06,0.00012054,2]
[421903474,1778315447000,-500.0,0.00012054,2]
[421903473,1778315447000,-500.0,0.00012054,2]
[421903469,1778315447000,-354.84693996,0.00012054,2]
[421903466,1778315447000,-500.0,0.00012054,2]
[421903472,1778315447000,-500.0,0.00012054,2]
[421903486,1778315447000,-502.85567076,0.00012054,2]
[421903479,1778315447000,-500.0,0.00012054,2]
[421903482,1778315447000,-502.88,0.00012054,2]
[421903484,1778315447000,-525.56,0.00012054,2]
[421903483,1778315447000,-500.0,0.00012054,2]
[421903489,1778315447000,-500.0,0.00012054,2]
[421903485,1778315447000,-500.0,0.00012054,2]
[421903478,1778315447000,-175.59,0.00012054,2]
[421903481,1778315447000,-500.0,0.00012054,2]
[421903480,1778315447000,-500.0,0.00012054,2]
[421903487,1778315447000,-500.0,0.00012054,2]
[421903557,1778315448000,-3825.04,0.00012054,2]
[421903552,1778315448000,-875.31,0.00012054,2]
[421903555,1778315448000,-500.0,0.00012054,2]
[421903556,1778315448000,-500.0,0.00012054,2]
[421903553,1778315448000,-500.0,0.00012054,2]
[421903551,1778315448000,-500.0,0.00012054,2]
[421903550,1778315448000,-500.0,0.00012054,2]
[421903560,1778315448000,-592.89,0.00012054,2]
[421903561,1778315448000,-2744.38,0.00012054,2]
[421903546,1778315448000,-2067.45,0.00012054,2]
[421903558,1778315448000,-500.0,0.00012054,2]
[421903554,1778315448000,-500.0,0.00012054,2]
[421903559,1778315448000,-500.0,0.00012054,2]
[421903575,1778315448000,-628.55,0.00012054,2]
[421903564,1778315448000,-731.38,0.00012054,2]
[421903573,1778315448000,-500.0,0.00012054,2]
[421903571,1778315448000,-500.0,0.00012054,2]
[421903565,1778315448000,-734.75,0.00012054,2]
[421903563,1778315448000,-500.0,0.00012054,2]
[421903566,1778315448000,-535.57,0.00012054,2]
[421903572,1778315448000,-500.0,0.00012054,2]
[421903568,1778315448000,-500.0,0.00012054,2]
[421903567,1778315448000,-1100.62,0.00012054,2]
[421903569,1778315448000,-500.0,0.00012054,2]
[421903570,1778315448000,-500.0,0.00012054,2]
[421903586,1778315448000,-500.0,0.00012054,2]
[421903547,1778315448000,-500.0,0.00012054,2]
[421903562,1778315448000,-1090.75,0.00012054,2]
[421903549,1778315448000,-500.0,0.00012054,2]
[421903519,1778315448000,-1221.2,0.00012054,2]
[421903548,1778315448000,-500.0,0.00012054,2]
[421903518,1778315448000,-500.0,0.00012054,2]
[421903525,1778315448000,-667.76,0.00012054,2]
[421903574,1778315448000,-1222.76,0.00012054,2]
[421903522,1778315448000,-500.0,0.00012054,2]
[421903523,1778315448000,-500.0,0.00012054,2]
[421903520,1778315448000,-500.0,0.00012054,2]
[421903521,1778315448000,-500.0,0.00012054,2]
[421903524,1778315448000,-500.0,0.00012054,2]
[421903538,1778315448000,-600.62,0.00012054,2]
[421903537,1778315448000,-500.0,0.00012054,2]
[421903526,1778315448000,-500.0,0.00012054,2]
[421903527,1778315448000,-500.0,0.00012054,2]
[421903529,1778315448000,-500.0,0.00012054,2]
[421903530,1778315448000,-1165.59,0.00012054,2]
[421903528,1778315448000,-550.85,0.00012054,2]
[421903533,1778315448000,-500.0,0.00012054,2]
[421903535,1778315448000,-500.0,0.00012054,2]
[421903532,1778315448000,-500.0,0.00012054,2]
[421903534,1778315448000,-548.03,0.00012054,2]
[421903536,1778315448000,-500.0,0.00012054,2]
[421903531,1778315448000,-500.0,0.00012054,2]
[421903540,1778315448000,-500.0,0.00012054,2]
[421903541,1778315448000,-676.26,0.00012054,2]
[421903539,1778315448000,-500.0,0.00012054,2]
[421903542,1778315448000,-554.31,0.00012054,2]
[421903544,1778315448000,-1819.96,0.00012054,2]
[421903545,1778315448000,-500.0,0.00012054,2]
[421903543,1778315448000,-500.0,0.00012054,2]
[421903576,1778315448000,-500.0,0.00012054,2]
[421903625,1778315448000,-500.17,0.00012328,2]
[421903577,1778315448000,-859.52,0.00012054,2]
[421903612,1778315448000,-500.0,0.00012054,2]
[421903623,1778315448000,-500.0,0.00012328,2]
[421903616,1778315448000,-709.72,0.00012054,2]
[421903621,1778315448000,-500.0,0.00012328,2]
[421903614,1778315448000,-500.0,0.00012054,2]
[421903613,1778315448000,-500.0,0.00012054,2]
[421903622,1778315448000,-500.0,0.00012328,2]
[421903620,1778315448000,-500.0,0.00012328,2]
[421903615,1778315448000,-714.26,0.00012054,2]
[421903619,1778315448000,-500.0,0.00012328,2]
[421903618,1778315448000,-587.0,0.00012099,2]
[421903617,1778315448000,-1479.23,0.00012054,2]
[421903627,1778315448000,-219.88,0.00012328,2]
[421903626,1778315448000,-1197.6811,0.00012328,2]
[421903628,1778315448000,-189.65,0.00012328,2]
[421903630,1778315448000,-500.0,0.00012328,2]
[421903635,1778315448000,-500.0,0.00012328,2]
[421903629,1778315448000,-502.88,0.00012328,2]
[421903631,1778315448000,-525.56,0.00012328,2]
[421903633,1778315448000,-500.0,0.00012328,2]
[421903632,1778315448000,-432.16,0.00012328,2]
[421903634,1778315448000,-511.68,0.00012328,2]
[421903636,1778315448000,-620.04,0.00012328,2]
[421903638,1778315448000,-1194.49,0.00012328,2]
[421903639,1778315448000,-500.0,0.00012328,2]
[421903585,1778315448000,-2149.26,0.00012054,2]
[421903637,1778315448000,-623.29,0.00012328,2]
[421903611,1778315448000,-500.0,0.00012054,2]
[421903609,1778315448000,-500.0,0.00012054,2]
[421903624,1778315448000,-500.0,0.00012328,2]
[421903605,1778315448000,-500.0,0.00012054,2]
[421903582,1778315448000,-500.0,0.00012054,2]
[421903578,1778315448000,-500.0,0.00012054,2]
[421903606,1778315448000,-601.4,0.00012054,2]
[421903579,1778315448000,-506.95,0.00012054,2]
[421903580,1778315448000,-500.0,0.00012054,2]
[421903581,1778315448000,-500.0,0.00012054,2]
[421903584,1778315448000,-802.52,0.00012054,2]
[421903583,1778315448000,-681.8,0.00012054,2]
[421903587,1778315448000,-1234.35,0.00012054,2]
[421903590,1778315448000,-500.0,0.00012054,2]
[421903589,1778315448000,-3051.79,0.00012054,2]
[421903592,1778315448000,-449.38,0.00012054,2]
[421903593,1778315448000,-1687.57,0.00012054,2]
[421903595,1778315448000,-507.77,0.00012054,2]
[421903591,1778315448000,-678.04,0.00012054,2]
[421903603,1778315448000,-1554.02,0.00012054,2]
[421903608,1778315448000,-500.0,0.00012054,2]
[421903597,1778315448000,-528.25,0.00012054,2]
[421903604,1778315448000,-2925.65,0.00012054,2]
[421903602,1778315448000,-1186.27,0.00012054,2]
[421903601,1778315448000,-566.2,0.00012054,2]
[421903610,1778315448000,-645.42,0.00012054,2]
[421903600,1778315448000,-15569.89,0.00012054,2]
[421903596,1778315448000,-500.0,0.00012054,2]
[421903594,1778315448000,-500.0,0.00012054,2]
[421903598,1778315448000,-500.0,0.00012054,2]
[421903588,1778315448000,-500.0,0.00012054,2]
[421903599,1778315448000,-297.57,0.00012054,2]
[421903607,1778315448000,-500.0,0.00012054,2]
[421903674,1778315449000,-548.03,0.00012328,2]
[421903677,1778315449000,-500.0,0.00012328,2]
[421903682,1778315449000,-500.0,0.00012328,2]
[421903680,1778315449000,-676.26,0.00012328,2]
[421903678,1778315449000,-500.0,0.00012328,2]
[421903672,1778315449000,-500.0,0.00012328,2]
[421903679,1778315449000,-500.0,0.00012328,2]
[421903676,1778315449000,-500.0,0.00012328,2]
[421903686,1778315449000,-500.0,0.00012328,2]
[421903675,1778315449000,-158.07702751,0.00012328,2]
[421903681,1778315449000,-554.31,0.00012328,2]
[421903685,1778315449000,-2067.45,0.00012328,2]
[421903683,1778315449000,-1819.96,0.00012328,2]
[421903700,1778315449000,-1090.75,0.00012328,2]
[421903688,1778315449000,-648.9,0.00012328,2]
[421903696,1778315449000,-3825.04,0.00012328,2]
[421903697,1778315449000,-588.68,0.00012328,2]
[421903698,1778315449000,-592.89,0.00012328,2]
[421903687,1778315449000,-500.0,0.00012328,2]
[421903689,1778315449000,-501.89562704,0.00012328,2]
[421903694,1778315449000,-500.0,0.00012328,2]
[421903695,1778315449000,-500.0,0.00012328,2]
[421903691,1778315449000,-875.31,0.00012328,2]
[421903690,1778315449000,-223.73,0.00012328,2]
[421903692,1778315449000,-504.81,0.00012328,2]
[421903693,1778315449000,-510.9,0.00012328,2]
[421903710,1778315449000,-500.0,0.00012328,2]
[421903664,1778315449000,-451.73,0.00012328,2]
[421903684,1778315449000,-500.0,0.00012328,2]
[421903665,1778315449000,-502.08280408,0.00012328,2]
[421903646,1778315449000,-500.0,0.00012328,2]
[421903671,1778315449000,-151.0,0.00012328,2]
[421903705,1778315449000,-1100.62,0.00012328,2]
[421903640,1778315449000,-592.64,0.00012328,2]
[421903641,1778315449000,-1051.41,0.00012328,2]
[421903648,1778315449000,-545.6,0.00012328,2]
[421903647,1778315449000,-500.0,0.00012328,2]
[421903645,1778315449000,-530.56,0.00012328,2]
[421903643,1778315449000,-500.0,0.00012328,2]
[421903642,1778315449000,-500.0,0.00012328,2]
[421903644,1778315449000,-500.0,0.00012328,2]
[421903650,1778315449000,-500.0,0.00012328,2]
[421903658,1778315449000,-500.0,0.00012328,2]
[421903659,1778315449000,-575.07,0.00012328,2]
[421903649,1778315449000,-162.44,0.00012328,2]
[421903667,1778315449000,-500.0,0.00012328,2]
[421903661,1778315449000,-500.0,0.00012328,2]
[421903651,1778315449000,-502.07039185,0.00012328,2]
[421903652,1778315449000,-500.0,0.00012328,2]
[421903654,1778315449000,-604.84,0.00012328,2]
[421903655,1778315449000,-549.97,0.00012328,2]
[421903656,1778315449000,-500.0,0.00012328,2]
[421903653,1778315449000,-500.0,0.00012328,2]
[421903657,1778315449000,-1221.2,0.00012328,2]
[421903669,1778315449000,-606.1,0.00012328,2]
[421903668,1778315449000,-1165.59,0.00012328,2]
[421903666,1778315449000,-550.85,0.00012328,2]
[421903663,1778315449000,-667.76,0.00012328,2]
[421903670,1778315449000,-502.3931989,0.00012328,2]
[421903673,1778315449000,-152.117416,0.00012328,2]
[421903660,1778315449000,-500.0,0.00012328,2]
[421903707,1778315449000,-500.0,0.00012328,2]
[421903662,1778315449000,-500.0,0.00012328,2]
[421903699,1778315449000,-2744.38,0.00012328,2]
[421903738,1778315449000,-1186.27,0.00012328,2]
[421903740,1778315449000,-2925.65,0.00012328,2]
[421903742,1778315449000,-500.0,0.00012328,2]
[421903741,1778315449000,-500.0,0.00012328,2]
[421903739,1778315449000,-1554.02,0.00012328,2]
[421903743,1778315449000,-500.0,0.00012328,2]
[421903744,1778315449000,-500.0,0.00012328,2]
[421903745,1778315449000,-645.42,0.00012328,2]
[421903748,1778315449000,-500.0,0.00012328,2]
[421903749,1778315449000,-714.26,0.00012328,2]
[421903747,1778315449000,-500.0,0.00012328,2]
[421903746,1778315449000,-500.0,0.00012328,2]
[421903750,1778315449000,-709.72,0.00012328,2]
[421903735,1778315449000,-500.0,0.00012328,2]
[421903752,1778315449000,-12685.14,0.00012329,2]
[421903751,1778315449000,-1479.23,0.00012328,2]
[421903754,1778315449000,-8809.13,0.00012329,2]
[421903753,1778315449000,-10570.95,0.00012329,2]
[421903755,1778315449000,-7340.94,0.00012329,2]
[421903756,1778315449000,-6117.45,0.00012329,2]
[421903758,1778315449000,-4248.23,0.00012329,2]
[421903760,1778315449000,-2950.16,0.00012329,2]
[421903759,1778315449000,-3540.19,0.00012329,2]
[421903757,1778315449000,-5097.88,0.00012329,2]
[421903761,1778315449000,-2458.47,0.00012329,2]
[421903763,1778315449000,-1707.27,0.00012329,2]
[421903765,1778315449000,-1185.6,0.00012329,2]
[421903764,1778315449000,-1422.72,0.00012329,2]
[421903762,1778315449000,-2048.72,0.00012329,2]
[421903732,1778315449000,-507.77,0.00012328,2]
[421903702,1778315449000,-731.38,0.00012328,2]
[421903734,1778315449000,-528.25,0.00012328,2]
[421903704,1778315449000,-535.57,0.00012328,2]
[421903711,1778315449000,-500.0,0.00012328,2]
[421903701,1778315449000,-502.29693009,0.00012328,2]
[421903709,1778315449000,-500.0,0.00012328,2]
[421903708,1778315449000,-597.79,0.00012328,2]
[421903703,1778315449000,-734.75,0.00012328,2]
[421903706,1778315449000,-500.0,0.00012328,2]
[421903712,1778315449000,-1222.76,0.00012328,2]
[421903730,1778315449000,-1687.57,0.00012328,2]
[421903715,1778315449000,-859.52,0.00012328,2]
[421903713,1778315449000,-628.55,0.00012328,2]
[421903720,1778315449000,-574.8,0.00012328,2]
[421903717,1778315449000,-506.95,0.00012328,2]
[421903718,1778315449000,-620.06,0.00012328,2]
[421903714,1778315449000,-500.0,0.00012328,2]
[421903724,1778315449000,-562.88,0.00012328,2]
[421903722,1778315449000,-802.52,0.00012328,2]
[421903731,1778315449000,-500.0,0.00012328,2]
[421903725,1778315449000,-1234.35,0.00012328,2]
[421903729,1778315449000,-678.04,0.00012328,2]
[421903728,1778315449000,-500.0,0.00012328,2]
[421903727,1778315449000,-3051.79,0.00012328,2]
[421903733,1778315449000,-500.0,0.00012328,2]
[421903736,1778315449000,-15569.89,0.00012328,2]
[421903726,1778315449000,-500.0,0.00012328,2]
[421903723,1778315449000,-2149.26,0.00012328,2]
[421903721,1778315449000,-681.8,0.00012328,2]
[421903719,1778315449000,-500.0,0.00012328,2]
[421903716,1778315449000,-500.0,0.00012328,2]
[421903737,1778315449000,-566.2,0.00012328,2]
[421903811,1778315450000,-1221.2,0.00012602,2]
[421903808,1778315450000,-604.84,0.00012602,2]
[421903803,1778315450000,-500.0,0.00012602,2]
[421903805,1778315450000,-500.0,0.00012602,2]
[421903806,1778315450000,-500.0,0.00012602,2]
[421903812,1778315450000,-243.47,0.00012602,2]
[421903807,1778315450000,-500.0,0.00012602,2]
[421903801,1778315450000,-531.4,0.00012602,2]
[421903802,1778315450000,-500.0,0.00012602,2]
[421903800,1778315450000,-225.37,0.00012602,2]
[421903799,1778315450000,-500.0,0.00012602,2]
[421903804,1778315450000,-545.6,0.00012602,2]
[421903809,1778315450000,-549.97,0.00012602,2]
[421903824,1778315450000,-500.0,0.00012602,2]
[421903810,1778315450000,-500.0,0.00012602,2]
[421903814,1778315450000,-500.0,0.00012602,2]
[421903815,1778315450000,-667.76,0.00012602,2]
[421903817,1778315450000,-500.0,0.00012602,2]
[421903820,1778315450000,-500.0,0.00012602,2]
[421903823,1778315450000,-500.0,0.00012602,2]
[421903822,1778315450000,-500.0,0.00012602,2]
[421903827,1778315450000,-1819.96,0.00012602,2]
[421903825,1778315450000,-676.26,0.00012602,2]
[421903816,1778315450000,-550.85,0.00012602,2]
[421903821,1778315450000,-548.03,0.00012602,2]
[421903826,1778315450000,-554.31,0.00012602,2]
[421903818,1778315450000,-1165.59,0.00012602,2]
[421903794,1778315450000,-623.29,0.00012602,2]
[421903813,1778315450000,-500.0,0.00012602,2]
[421903796,1778315450000,-500.0,0.00012602,2]
[421903785,1778315450000,-500.0,0.00012602,2]
[421903797,1778315450000,-592.64,0.00012602,2]
[421903819,1778315450000,-151.0,0.00012602,2]
[421903767,1778315450000,-823.34,0.00012329,2]
[421903766,1778315450000,-988.0,0.00012329,2]
[421903774,1778315450000,-220.59,0.00012329,2]
[421903768,1778315450000,-686.11,0.00012329,2]
[421903770,1778315450000,-457.41,0.00012329,2]
[421903772,1778315450000,-317.65,0.00012329,2]
[421903773,1778315450000,-264.7,0.00012329,2]
[421903769,1778315450000,-686.11,0.00012329,2]
[421903771,1778315450000,-381.17,0.00012329,2]
[421903786,1778315450000,-176.74,0.00012602,2]
[421903787,1778315450000,-500.17,0.00012602,2]
[421903776,1778315450000,-153.19,0.00012329,2]
[421903777,1778315450000,-765.95,0.00012329,2]
[421903781,1778315450000,-340.59766075,0.00012561,2]
[421903782,1778315450000,-500.0,0.00012602,2]
[421903775,1778315450000,-183.82,0.00012329,2]
[421903779,1778315450000,-171.9218,0.00012465,2]
[421903783,1778315450000,-500.0,0.00012602,2]
[421903778,1778315450000,-864.0,0.00012341,2]
[421903784,1778315450000,-500.0,0.00012602,2]
[421903780,1778315450000,-11791.35943287,0.000125,2]
[421903788,1778315450000,-1197.6811,0.00012602,2]
[421903790,1778315450000,-500.0,0.00012602,2]
[421903789,1778315450000,-502.88,0.00012602,2]
[421903791,1778315450000,-525.56,0.00012602,2]
[421903793,1778315450000,-176.5,0.00012602,2]
[421903798,1778315450000,-1051.41,0.00012602,2]
[421903795,1778315450000,-1194.49,0.00012602,2]
[421903792,1778315450000,-500.0,0.00012602,2]
[421903839,1778315450000,-734.75,0.00012602,2]
[421903831,1778315450000,-875.31,0.00012602,2]
[421903828,1778315450000,-500.0,0.00012602,2]
[421903862,1778315450000,-1687.57,0.00012602,2]
[421903861,1778315450000,-678.04,0.00012602,2]
[421903866,1778315450000,-528.25,0.00012602,2]
[421903872,1778315450000,-2925.65,0.00012602,2]
[421903878,1778315450000,-500.0,0.00012602,2]
[421903869,1778315450000,-566.2,0.00012602,2]
[421903870,1778315450000,-1186.27,0.00012602,2]
[421903877,1778315450000,-500.0,0.00012602,2]
[421903867,1778315450000,-540.84,0.00012602,2]
[421903868,1778315450000,-15569.89,0.00012602,2]
[421903871,1778315450000,-1554.02,0.00012602,2]
[421903874,1778315450000,-500.0,0.00012602,2]
[421903875,1778315450000,-500.0,0.00012602,2]
[421903873,1778315450000,-500.0,0.00012602,2]
[421903876,1778315450000,-645.42,0.00012602,2]
[421903880,1778315450000,-714.26,0.00012602,2]
[421903879,1778315450000,-500.0,0.00012602,2]
[421903881,1778315450000,-709.72,0.00012602,2]
[421903882,1778315450000,-1479.23,0.00012602,2]
[421903884,1778315450000,-500.0,0.00012876,2]
[421903883,1778315450000,-500.0,0.00012876,2]
[421903889,1778315450000,-502.88,0.00012876,2]
[421903888,1778315450000,-1197.6811,0.00012876,2]
[421903886,1778315450000,-500.0,0.00012876,2]
[421903829,1778315450000,-2067.45,0.00012602,2]
[421903885,1778315450000,-500.0,0.00012876,2]
[421903890,1778315450000,-227.16,0.00012876,2]
[421903892,1778315450000,-500.0,0.00012876,2]
[421903891,1778315450000,-525.56,0.00012876,2]
[421903859,1778315450000,-3051.79,0.00012602,2]
[421903857,1778315450000,-1234.35,0.00012602,2]
[421903887,1778315450000,-500.17,0.00012876,2]
[421903858,1778315450000,-232.22,0.00012602,2]
[421903860,1778315450000,-500.0,0.00012602,2]
[421903830,1778315450000,-500.0,0.00012602,2]
[421903832,1778315450000,-500.0,0.00012602,2]
[421903838,1778315450000,-731.38,0.00012602,2]
[421903835,1778315450000,-592.89,0.00012602,2]
[421903836,1778315450000,-2744.38,0.00012602,2]